Workbook

Sheet Камеры-Standard 80
G3: 2020-12-15
A4: Сборно-разборные холодильные камеры из сендвич-панелей с соединением ШИП-ПАЗ из жесткого ПВХ
G7: толщина панели 80 мм
A8: ПРАЙС-ЛИСТ - КАМЕРЫ POLAIR Standard (80мм) ИЗ СТАНДАРТНЫХ ПАНЕЛЕЙ
A9: Базовые цены с учетом НДС
A10: Внешние габариты | C10: Высота 2 200 мм | E10: Высота 2 460 мм | G10: Высота 2 720 мм
A11: Длина | B11: Ширина | C11: объём, м3 | D11: Цена, Руб. | E11: объём, м3 | F11: Цена, Руб. | G11: объём, м3 | H11: Цена, Руб.
A12: 1360 | B12: 1360 | C12: 2.94 | D12: 0 | E12: 3.31 | F12: 68988.56916 | G12: 3.69 | H12: 73846.67655
B13: 1660 | C13: 3.67 | D13: 71411.23823 | E13: 4.14 | F13: 76157.13714 | G13: 4.61 | H13: 81509.42793
B14: 1960 | C14: 4.41 | D14: 0 | E14: 4.97 | F14: 83326.24156 | G14: 5.53 | H14: 89172.1793
B15: 2260 | C15: 5.14 | D15: 84747.65026 | E15: 5.8 | F15: 90495.56729 | G15: 6.45 | H15: 96847.28995
B16: 2560 | C16: 5.88 | D16: 91433.92688 | E16: 6.62 | F16: 97675.36147 | G16: 7.37 | H16: 104510.0413
B17: 2860 | C17: 6.61 | D17: 98095.57687 | E17: 7.45 | F17: 104831.3825 | G17: 8.29 | H17: 112172.7927
B18: 3160 | C18: 7.34 | D18: 104757.2269 | E18: 8.28 | F18: 111999.7628 | G18: 9.22 | H18: 119835.5441
B19: 3460 | C19: 8.08 | D19: 111443.5954 | E19: 9.11 | F19: 119168.1431 | G19: 10.14 | H19: 127510.6547
B20: 3760 | C20: 8.81 | D20: 118105.2454 | E20: 9.94 | F20: 126336.5235 | G20: 11.06 | H20: 135161.0468
B21: 4060 | C21: 9.55 | D21: 124791.6139 | E21: 10.76 | F21: 133504.9038 | G21: 11.98 | H21: 142823.7982
B22: 4360 | C22: 10.28 | D22: 131453.2639 | E22: 11.59 | F22: 140673.2841 | G22: 12.9 | H22: 150486.5496
B23: 4660 | C23: 11.02 | D23: 138139.6324 | E23: 12.42 | F23: 147915.8201 | G23: 13.82 | H23: 158149.3009
B24: 4960 | C24: 11.75 | D24: 144801.2824 | E24: 13.25 | F24: 155010.0447 | G24: 14.75 | H24: 165824.4116
B25: 5260 | C25: 12.48 | D25: 151475.2917 | E25: 14.08 | F25: 162178.4251 | G25: 15.67 | H25: 173487.163
B26: 5560 | C26: 13.22 | D26: 158149.3009 | E26: 14.9 | F26: 169346.8054 | G26: 16.59 | H26: 181149.9143
A27: 1660 | B27: 1660 | C27: 4.59 | D27: 78703.87218 | E27: 5.17 | F27: 83944.20538 | G27: 5.76 | H27: 89802.5024
B28: 1960 | C28: 5.51 | D28: 85995.84526 | E28: 6.21 | F28: 91804.70518 | G28: 6.91 | H28: 98070.85832
B29: 2260 | C29: 6.43 | D29: 93263.09979 | E29: 7.25 | F29: 99504.53438 | G29: 8.06 | H29: 106339.2142
B30: 2560 | C30: 7.34 | D30: 100555.0729 | E30: 8.28 | F30: 107290.8785 | G30: 9.22 | H30: 110763.8352
B31: 2860 | C31: 8.26 | D31: 107834.6867 | E31: 9.31 | F31: 115064.8634 | G31: 10.37 | H31: 122900.6446
B32: 3160 | C32: 9.18 | D32: 115126.6598 | E32: 10.35 | F32: 122838.8482 | G32: 11.52 | H32: 131169.0005
B33: 3460 | C33: 10.1 | D33: 122406.2736 | E33: 11.39 | F33: 130637.5517 | G33: 12.67 | H33: 139462.075
B34: 3760 | C34: 11.02 | D34: 129698.2466 | E34: 12.42 | F34: 138411.5365 | G34: 13.82 | H34: 147730.4309
B35: 4060 | C35: 11.93 | D35: 136990.2197 | E35: 13.46 | F35: 146197.8807 | G35: 14.98 | H35: 156023.5054
B36: 4360 | C36: 12.85 | D36: 144257.4743 | E36: 14.49 | F36: 153971.8655 | G36: 16.13 | H36: 164291.8613
B37: 4660 | C37: 13.77 | D37: 151549.4473 | E37: 15.53 | F37: 161758.2097 | G37: 17.28 | H37: 172560.2172
B38: 4960 | C38: 14.69 | D38: 158829.0611 | E38: 16.56 | F38: 169532.1945 | G38: 18.43 | H38: 177664.5984
B39: 5260 | C39: 15.61 | D39: 166121.0342 | E39: 17.59 | F39: 177318.5387 | G39: 19.58 | H39: 180853.2917
B40: 5560 | C40: 16.52 | D40: 173400.648 | E40: 18.63 | F40: 185092.5235 | G40: 20.74 | H40: 184857.6973
A41: 1960 | B41: 1960 | C41: 6.61 | E41: 7.45 | F41: 100122.4982 | G41: 8.29 | H41: 102705.587
B42: 2260 | C42: 7.71 | E42: 8.69 | F42: 108514.4469 | G42: 9.68 | H42: 115855.8571
B43: 2560 | C43: 8.81 | E43: 9.94 | F43: 116918.7548 | G43: 11.06 | H43: 124754.5361
B44: 2860 | C44: 9.91 | D44: 116750.3034 | E44: 11.18 | F44: 125298.3442 | G44: 12.44 | H44: 133628.4965
B45: 3160 | C45: 11.02 | E45: 12.42 | F45: 133739.73 | G45: 13.82 | H45: 142527.1756
B46: 3460 | C46: 12.12 | D46: 133381.311 | E46: 13.66 | F46: 142106.9602 | G46: 15.21 | H46: 151413.4953
B47: 3760 | C47: 13.22 | D47: 141278.8886 | E47: 14.9 | F47: 150486.5496 | G47: 16.59 | H47: 160312.1743
B48: 4060 | C48: 14.32 | D48: 149176.4663 | E48: 16.15 | F48: 158890.8575 | G48: 17.97 | H48: 169198.4941
B49: 4360 | C49: 15.42 | D49: 157074.0439 | E49: 17.39 | F49: 167270.4469 | G49: 19.35 | H49: 173437.7259
B50: 4660 | C50: 16.52 | D50: 164971.6215 | E50: 18.63 | F50: 173215.2589 | G50: 20.74 | H50: 175254.5395
B51: 4960 | C51: 17.63 | D51: 172869.1992 | E51: 19.87 | F51: 175674.7549 | G51: 22.12 | H51: 179122.993
B52: 5260 | C52: 18.73 | D52: 180766.7768 | E52: 21.11 | F52: 178949.9631 | G52: 23.5 | H52: 184289.1706
B53: 5560 | C53: 19.83 | D53: 188664.3544 | E53: 22.36 | F53: 180779.1361 | G53: 24.88 | H53: 192285.6224
A54: 2260 | B54: 2260 | C54: 9 | D54: 110294.1827 | E54: 10.14 | F54: 117512.0001 | G54: 11.29 | H54: 120515.3043
B55: 2560 | C55: 10.28 | D55: 118809.7241 | E55: 11.59 | F55: 126521.9126 | G55: 12.9 | H55: 134852.0649
B56: 2860 | C56: 11.57 | D56: 127325.2656 | E56: 13.04 | F56: 135531.8251 | G56: 14.52 | H56: 144368.7077
B57: 3160 | C57: 12.85 | D57: 135840.807 | E57: 14.49 | F57: 144541.7376 | G57: 16.13 | H57: 153872.9913
B58: 3460 | C58: 14.14 | D58: 144331.6299 | E58: 15.94 | F58: 153564.0094 | G58: 17.74 | H58: 163377.2749
B59: 3760 | C59: 15.42 | D59: 152847.1714 | E59: 17.39 | F59: 161152.6051 | G59: 19.35 | H59: 167183.932
B60: 4060 | C60: 16.71 | D60: 161362.7128 | E60: 18.84 | F60: 167307.5248 | G60: 20.97 | H60: 168407.5004
B61: 4360 | C61: 17.99 | D61: 169878.2543 | E61: 20.29 | F61: 170644.5294 | G61: 22.58 | H61: 172696.1693
B62: 4660 | C62: 19.28 | D62: 172659.0915 | E62: 21.73 | F62: 172992.7919 | G62: 24.19 | H62: 181248.7886
B63: 4960 | C63: 20.56 | D63: 175872.5033 | E63: 23.18 | F63: 178739.8554 | G63: 25.8 | H63: 189801.4078
B64: 5260 | C64: 21.85 | D64: 178134.2509 | E64: 24.63 | F64: 186847.5408 | G64: 27.42 | H64: 198354.0271
B65: 5560 | C65: 23.13 | D65: 183535.2547 | E65: 26.08 | F65: 194942.8668 | G65: 29.03 | H65: 206919.0057
A66: 2560 | B66: 2560 | C66: 11.75 | E66: 13.25 | F66: 130464.5218 | G66: 14.75 | H66: 137880.0876
B67: 2860 | C67: 13.22 | D67: 137052.0161 | E67: 14.9 | F67: 145765.306 | G67: 16.59 | H67: 155096.5597
B68: 3160 | C68: 14.69 | D68: 146185.5214 | E68: 16.56 | F68: 155393.1823 | G68: 18.43 | H68: 160954.8567
B69: 3460 | C69: 16.16 | D69: 155306.6674 | E69: 18.22 | F69: 165021.0586 | G69: 20.28 | H69: 163488.5084
B70: 3760 | C70: 17.63 | D70: 164427.8134 | E70: 19.87 | F70: 171793.9421 | G70: 22.12 | H70: 166899.6686
B71: 4060 | C71: 19.09 | D71: 167159.2134 | E71: 21.53 | F71: 174364.6716 | G71: 23.96 | H71: 176020.8146
B72: 4360 | C72: 20.56 | D72: 172634.3729 | E72: 23.18 | F72: 177343.2572 | G72: 25.8 | H72: 185117.2421
B73: 4660 | C73: 22.03 | D73: 174859.0427 | E73: 24.84 | F73: 183152.1171 | G73: 27.65 | H73: 194226.0288
B74: 4960 | C74: 23.5 | D74: 180828.5732 | E74: 26.5 | F74: 191815.9699 | G74: 29.49 | H74: 203322.4562
B75: 5260 | C75: 24.97 | D75: 189047.492 | E75: 28.15 | F75: 200479.8227 | G75: 31.33 | H75: 212431.2429
B76: 5560 | C76: 26.44 | D76: 197266.4108 | E76: 29.81 | F76: 209131.3161 | G76: 33.18 | H76: 221540.0297
A77: 2860 | B77: 2860 | C77: 14.87 | D77: 157937.9573 | E77: 16.767 | F77: 167154.2697 | G77: 18.6624 | H77: 176970.0071
B78: 3160 | C78: 16.52 | D78: 168846.2547 | E78: 18.63 | F78: 178558.1741 | G78: 20.736 | H78: 169983.3081
B79: 3460 | C79: 18.18 | D79: 179754.552 | E79: 20.493 | F79: 170965.8706 | G79: 22.8096 | H79: 180692.6211
B80: 3760 | C80: 19.83 | D80: 190662.8494 | E80: 22.356 | F80: 181230.2496 | G80: 24.8832 | H80: 191403.1701
B81: 4060 | C81: 21.48 | D81: 181413.1669 | E81: 24.219 | F81: 191493.3928 | G81: 26.9568 | H81: 202112.4831
B82: 4360 | C82: 23.13 | D82: 191230.1402 | E82: 26.082 | F82: 201756.5359 | G82: 29.0304 | H82: 212823.032
B83: 4660 | C83: 24.79 | D83: 201048.3494 | E83: 27.945 | F83: 212020.915 | G83: 31.104 | H83: 223532.345
B84: 4960 | C84: 26.44 | D84: 210865.3226 | E84: 29.808 | F84: 222284.0581 | G84: 33.1776 | H84: 234242.8939
B85: 5260 | C85: 28.09 | D85: 220682.2959 | E85: 31.671 | F85: 232547.2012 | G85: 35.2512 | H85: 244952.207
B86: 5560 | C86: 29.74 | D86: 230499.2691 | E86: 33.534 | F86: 242811.5803 | G86: 37.3248 | H86: 255662.7559
A87: 3160 | B87: 3160 | C87: 18.36 | D87: 180489.929 | E87: 20.7 | F87: 171653.0464 | G87: 23.04 | H87: 181355.0783
B88: 3460 | C88: 20.2 | D88: 172921.1081 | E88: 22.77 | F88: 182553.9281 | G88: 25.344 | H88: 192728.0845
B89: 3760 | C89: 22.03 | D89: 183400.5386 | E89: 24.84 | F89: 193480.7644 | G89: 27.648 | H89: 204099.8547
B90: 4060 | C90: 23.87 | D90: 193879.969 | E90: 26.91 | F90: 204406.3648 | G90: 29.952 | H90: 215472.8609
B91: 4360 | C91: 25.7 | D91: 204359.3995 | E91: 28.98 | F91: 215331.9651 | G91: 32.256 | H91: 226844.6311
B92: 4660 | C92: 27.54 | D92: 214840.0659 | E92: 31.05 | F92: 226258.8014 | G92: 34.56 | H92: 238217.6372
B93: 4960 | C93: 29.38 | D93: 225319.4964 | E93: 33.12 | F93: 237184.4017 | G93: 36.864 | H93: 249589.4075
B94: 5260 | C94: 31.21 | D94: 235798.9268 | E94: 35.19 | F94: 248110.0021 | G94: 39.168 | H94: 260961.1777
B95: 5560 | C95: 33.05 | D95: 246278.3573 | E95: 37.26 | F95: 259036.8384 | G95: 41.472 | H95: 272334.1838
A96: 3460 | B96: 3460 | C96: 22.2156 | D96: 184062.9958 | E96: 25.047 | F96: 194143.2216 | G96: 27.8784 | H96: 204762.3119
B97: 3760 | C97: 24.2352 | D97: 195204.8835 | E97: 27.324 | F97: 205731.2792 | G97: 30.4128 | H97: 216797.7753
B98: 4060 | C98: 26.2548 | D98: 206346.7712 | E98: 29.601 | F98: 217319.3368 | G98: 32.9472 | H98: 228832.0027
B99: 4360 | C99: 28.2744 | D99: 217488.6588 | E99: 31.878 | F99: 228908.6303 | G99: 35.4816 | H99: 240866.2302
B100: 4660 | C100: 30.294 | D100: 228631.7825 | E100: 34.155 | F100: 240496.6878 | G100: 38.016 | H100: 252901.6935
B101: 4960 | C101: 32.3136 | D101: 239773.6701 | E101: 36.432 | F101: 252084.7454 | G101: 40.5504 | H101: 264935.921
B102: 5260 | C102: 34.3332 | D102: 250915.5578 | E102: 38.709 | F102: 263672.8029 | G102: 43.0848 | H102: 276971.3844
B103: 5560 | C103: 36.3528 | D103: 262057.4455 | E103: 40.986 | F103: 275262.0964 | G103: 45.6192 | H103: 289005.6118
A104: 3760 | B104: 3760 | C104: 26.4384 | D104: 207009.2284 | E104: 29.808 | F104: 217981.794 | G104: 33.1776 | H104: 229494.46
B105: 4060 | C105: 28.6416 | D105: 218813.5733 | E105: 32.292 | F105: 230233.5447 | G105: 35.9424 | H105: 242191.1446
B106: 4360 | C106: 30.8448 | D106: 230619.1541 | E106: 34.776 | F106: 242484.0595 | G106: 38.7072 | H106: 254889.0652
B107: 4660 | C107: 33.048 | D107: 242423.499 | E107: 37.26 | F107: 254734.5742 | G107: 41.472 | H107: 267585.7498
B108: 4960 | C108: 35.2512 | D108: 254227.8439 | E108: 39.744 | F108: 266985.089 | G108: 44.2368 | H108: 280283.6704
B109: 5260 | C109: 37.4544 | D109: 266032.1888 | E109: 42.228 | F109: 279236.8397 | G109: 47.0016 | H109: 292980.3551
B110: 5560 | C110: 39.6576 | D110: 277836.5337 | E110: 44.712 | F110: 291487.3545 | G110: 49.7664 | H110: 305677.0397
A111: 4060 | B111: 4060 | C111: 31.0284 | D111: 231281.6113 | E111: 34.983 | F111: 243146.5167 | G111: 38.9376 | H111: 255551.5224
B112: 4360 | C112: 33.4152 | D112: 243748.4134 | E112: 37.674 | F112: 256059.4887 | G112: 41.9328 | H112: 268910.6643
B113: 4660 | C113: 35.802 | D113: 256215.2156 | E113: 40.365 | F113: 268972.4607 | G113: 44.928 | H113: 282271.0421
B114: 4960 | C114: 38.1888 | D114: 269299.9815 | E114: 43.056 | F114: 281885.4327 | G114: 47.9232 | H114: 295630.184
B115: 5260 | C115: 40.5756 | D115: 281148.8198 | E115: 45.747 | F115: 294552.455 | G115: 50.9184 | H115: 308989.3258
B116: 5560 | C116: 42.9624 | D116: 293615.6219 | E116: 48.438 | F116: 307712.6126 | G116: 53.9136 | H116: 322349.7036
A117: 4360 | B117: 4360 | C117: 35.9856 | D117: 257001.2655 | E117: 40.572 | F117: 269634.9179 | G117: 45.1584 | H117: 282933.4993
B118: 4660 | C118: 38.556 | D118: 270006.9321 | E118: 43.47 | F118: 283210.3471 | G118: 48.384 | H118: 296955.0984
B119: 4960 | C119: 41.1264 | D119: 283136.1914 | E119: 46.368 | F119: 296787.0122 | G119: 51.6096 | H119: 310976.6975
B120: 5260 | C120: 43.6968 | D120: 296265.4508 | E120: 49.266 | F120: 310362.4414 | G120: 54.8352 | H120: 324999.5325
B121: 5560 | C121: 46.2672 | D121: 309394.7101 | E121: 52.164 | F121: 323937.8706 | G121: 58.0608 | H121: 339021.1316
A122: 4660 | B122: 4660 | C122: 41.31 | D122: 283798.6486 | E122: 46.575 | F122: 297449.4694 | G122: 51.84 | H122: 311639.1547
B123: 4960 | C123: 44.064 | D123: 297590.3652 | E123: 49.68 | F123: 311687.3559 | G123: 55.296 | H123: 326324.4469
B124: 5260 | C124: 46.818 | D124: 311382.0817 | E124: 52.785 | F124: 325925.2423 | G124: 58.752 | H124: 341008.5032
B125: 5560 | C125: 49.572 | D125: 325173.7983 | E125: 55.89 | F125: 340163.1287 | G125: 62.208 | H125: 355692.5595
A126: 4960 | B126: 4960 | C126: 47.0016 | D126: 312044.539 | E126: 52.992 | F126: 326587.6995 | G126: 58.9824 | H126: 341670.9604
B127: 5260 | C127: 49.9392 | D127: 326498.7127 | E127: 56.304 | F127: 341488.0431 | G127: 62.6688 | H127: 357017.474
B128: 5560 | C128: 52.8768 | D128: 340952.8865 | E128: 59.616 | F128: 356388.3868 | G128: 66.3552 | H128: 372363.9875
A129: 5260 | B129: 5260 | C129: 53.0604 | D129: 341615.3437 | E129: 59.823 | F129: 357050.844 | G129: 66.5856 | H129: 373026.4447
B130: 5560 | C130: 56.1816 | D130: 356731.9747 | E130: 63.342 | F130: 372613.6449 | G130: 70.5024 | H130: 389036.6514
A131: 5560 | B131: 5560 | C131: 59.47 | D131: 372511.0629 | E131: 67.07 | F131: 388840.1389 | G131: 74.65 | H131: 405708.0793
A132: Цены на оборудование ТМ «POLAIR», указанные в настоящем прайс-листе являются рекомендованными и могут отличаться от розничных цен у наших дилеров и региональных представителей.

Sheet КХН складские
E3: 2020-12-15
B6: ПРАЙС-ЛИСТ КАМЕРЫ POLAIR Standard (80мм) СКЛАДСКИЕ ПОЗИЦИИ
B11: Базовые цены с учетом НДС
B12: Код | C12: Модель | D12: Размеры, мм | E12: Цена, Руб
B13: 1070001 | C13: КХН-2,94 | D13: 1360*1360, h=2200 | E13: 57547.35
B14: 1070004 | C14: КХН-4,41 | D14: 1360*1960, h=2200 | E14: 68932.5
B15: 1070034 | C15: КХН-6,61 | D15: 1960*1960, h=2200 | E15: 79952.25
B16: 1070285 | C16: КХН-7,71 | D16: 1960*2260, h=2200 | E16: 89363.4
B17: 1070010 | C17: КХН-8,81 | D17: 1960*2560, h=2200 | E17: 94413.9
B18: 1070078 | C18: КХН-11,02 | D18: 1960*3160, h=2200 | E18: 108311.7
B19: 1070016 | C19: КХН-11,75 | D19: 2560*2560, h=2200 | E19: 109505.55
B50: Производитель оставляет за собой право частичного изменения технических характеристик оборудования без принципиальных изменений его эксплуатационных свойств

Sheet Камеры-Professionale 100
I2: 2020-12-15
A4: Сборно-разборные холодильные камеры из сендвич-панелей с соединением ШИП-ПАЗ из жесткого ПВХ
I7: толщина панели 100 мм
A8: ПРАЙС-ЛИСТ - КАМЕРЫ POLAIR Professionale (100мм) ИЗ СТАНДАРТНЫХ ПАНЕЛЕЙ
A10: Базовые цены с учетом НДС
A11: Внешние габариты | C11: Высота 2 240 мм | F11: Высота 2 500 мм | I11: Высота 2 760 мм
A12: Длина | B12: Ширина | C12: объём, м3 | D12: Цена, Руб. | E12: Цена, Руб | F12: объём, м3 | G12: Цена, Руб. | H12: Цена, Руб | I12: объём, м3 | J12: Цена, Руб.
A13: 1400 | B13: 1400 | C13: 2.94 | D13: 74402.84399 | E13: 0 | F13: 3.31 | G13: 79494.86587 | H13: 0 | I13: 3.69 | J13: 85514.31
B14: 1700 | C14: 3.67 | D14: 82461.09221 | E14: 0 | F14: 4.14 | G14: 88121.64081 | H14: 0 | I14: 4.61 | J14: 94684.905
B15: 2000 | C15: 4.41 | D15: 90531.69971 | E15: 0 | F15: 4.97 | G15: 96736.05646 | H15: 0 | I15: 5.53 | J15: 100765.1925
B16: 2300 | C16: 5.14 | D16: 98589.94793 | E16: 0 | F16: 5.8 | G16: 105350.4721 | H16: 0 | I16: 6.45 | J16: 108737.37
B17: 2600 | C17: 5.88 | D17: 103422.425 | E17: 0 | F17: 6.62 | G17: 110108.7935 | H17: 0 | I17: 7.37 | J17: 116708.445
B18: 2900 | C18: 6.61 | D18: 114731.1629 | E18: 0 | F18: 7.45 | G18: 122591.6627 | H18: 0 | I18: 8.29 | J18: 131367.285
B19: 3200 | C19: 7.34 | D19: 122789.4111 | E19: 0 | F19: 8.28 | G19: 131206.0784 | H19: 0 | I19: 9.22 | J19: 140537.88
B20: 3500 | C20: 8.08 | D20: 130860.0186 | E20: 0 | F20: 9.11 | G20: 139832.8533 | H20: 0 | I20: 10.14 | J20: 149720.6025
B21: 3800 | C21: 8.81 | D21: 138930.6261 | E21: 0 | F21: 9.94 | G21: 148447.269 | H21: 0 | I21: 11.06 | J21: 158891.1975
B22: 4100 | C22: 9.55 | D22: 146988.8743 | E22: 0 | F22: 10.76 | G22: 157061.6846 | H22: 0 | I22: 11.98 | J22: 168048.5625
B23: 4400 | C23: 10.28 | D23: 155059.4818 | E23: 0 | F23: 11.59 | G23: 165688.4596 | H23: 0 | I23: 12.9 | J23: 177219.1575
B24: 4700 | C24: 11.02 | D24: 163130.0893 | E24: 0 | F24: 12.42 | G24: 174302.8752 | H24: 0 | I24: 13.82 | J24: 186402.9825
B25: 5000 | C25: 11.75 | D25: 171188.3376 | E25: 0 | F25: 13.25 | G25: 182917.2909 | H25: 0 | I25: 14.75 | J25: 195573.5775
B26: 5300 | C26: 12.48 | D26: 179258.9451 | E26: 0 | F26: 14.08 | G26: 191544.0658 | H26: 0 | I26: 15.67 | J26: 204744.1725
B27: 5600 | C27: 13.22 | D27: 187329.5526 | E27: 0 | F27: 14.9 | G27: 200158.4815 | H27: 0 | I27: 16.59 | J27: 207574.29
A28: 1700 | B28: 1700 | C28: 4.59 | D28: 91335.05267 | E28: 0 | F28: 5.17 | G28: 97539.40943 | H28: 0 | I28: 5.76 | J28: 101259.1125
B29: 2000 | C29: 5.51 | D29: 100196.6539 | E29: 0 | F29: 6.21 | G29: 103756.1255 | H29: 0 | I29: 6.91 | J29: 109849.7925
B30: 2300 | C30: 6.43 | D30: 105128.0051 | E30: 0 | F30: 7.25 | G30: 111814.3737 | H30: 0 | I30: 8.06 | J30: 118414.0125
B31: 2600 | C31: 7.34 | D31: 112679.523 | E31: 0 | F31: 8.28 | G31: 119884.9812 | H31: 0 | I31: 9.22 | J31: 126979.335
B32: 2900 | C32: 8.26 | D32: 126793.8167 | E32: 0 | F32: 9.31 | G32: 135210.4839 | H32: 0 | I32: 10.37 | J32: 144542.16
B33: 3200 | C33: 9.18 | D33: 135655.4179 | E33: 0 | F33: 10.35 | G33: 144628.2526 | H33: 0 | I33: 11.52 | J33: 154515.375
B34: 3500 | C34: 10.1 | D34: 144529.3783 | E34: 0 | F34: 11.39 | G34: 154046.0212 | H34: 0 | I34: 12.67 | J34: 164477.565
B35: 3800 | C35: 11.02 | D35: 153390.9795 | E35: 0 | F35: 12.42 | G35: 163463.7898 | H35: 0 | I35: 13.82 | J35: 174450.78
B36: 4100 | C36: 11.93 | D36: 162252.5807 | E36: 0 | F36: 13.46 | G36: 172881.5584 | H36: 0 | I36: 14.98 | J36: 184425.0975
B37: 4400 | C37: 12.85 | D37: 171126.5412 | E37: 0 | F37: 14.49 | G37: 182299.3271 | H37: 0 | I37: 16.13 | J37: 194399.415
B38: 4700 | C38: 13.77 | D38: 179988.1424 | E38: 0 | F38: 15.53 | G38: 191717.0957 | H38: 0 | I38: 17.28 | J38: 198180.99
B39: 5000 | C39: 14.69 | D39: 188862.1028 | E39: 0 | F39: 16.56 | G39: 201134.8643 | H39: 0 | I39: 18.43 | J39: 207450.81
B40: 5300 | C40: 15.61 | D40: 197723.704 | E40: 0 | F40: 17.59 | G40: 210552.6329 | H40: 0 | I40: 19.58 | J40: 216744.885
B41: 5600 | C41: 16.52 | D41: 206585.3052 | E41: 0 | F41: 18.63 | G41: 219970.4016 | H41: 0 | I41: 20.74 | J41: 226013.6025
A42: 2000 | B42: 2000 | C42: 6.61 | D42: 105622.3762 | E42: 0 | F42: 7.45 | G42: 112333.4633 | H42: 0 | I42: 8.29 | J42: 118933.29
B43: 2300 | C43: 7.71 | D43: 113767.1394 | E43: 0 | F43: 8.69 | G43: 120984.9568 | H43: 0 | I43: 9.68 | J43: 128091.7575
B44: 2600 | C44: 8.81 | D44: 121911.9025 | E44: 0 | F44: 9.94 | G44: 129636.4503 | H44: 0 | I44: 11.06 | J44: 137250.225
B45: 2900 | C45: 9.91 | D45: 138856.4705 | E45: 0 | F45: 11.18 | G45: 147829.3051 | H45: 0 | I45: 12.44 | J45: 157717.035
B46: 3200 | C46: 11.02 | D46: 148521.4246 | E46: 0 | F46: 12.42 | G46: 158050.4267 | H46: 0 | I46: 13.82 | J46: 168481.845
B47: 3500 | C47: 12.12 | D47: 158186.3788 | E47: 0 | F47: 13.66 | G47: 168259.1891 | H47: 0 | I47: 15.21 | J47: 179258.7825
B48: 3800 | C48: 13.22 | D48: 167851.3329 | E48: 0 | F48: 14.9 | G48: 178480.3106 | H48: 0 | I48: 16.59 | J48: 190023.5925
B49: 4100 | C49: 14.32 | D49: 177528.6464 | E49: 0 | F49: 16.15 | G49: 188701.4322 | H49: 0 | I49: 17.97 | J49: 194497.5375
B50: 4400 | C50: 15.42 | D50: 187193.6005 | E50: 0 | F50: 17.39 | G50: 198922.5538 | H50: 0 | I50: 19.35 | J50: 204483.9825
B51: 4700 | C51: 16.52 | D51: 196858.5547 | E51: 0 | F51: 18.63 | G51: 209131.3161 | H51: 0 | I51: 20.74 | J51: 214470.4275
B52: 5000 | C52: 17.63 | D52: 206523.5088 | E52: 0 | F52: 19.87 | G52: 212752.5841 | H52: 0 | I52: 22.12 | J52: 224481.1275
B53: 5300 | C53: 18.73 | D53: 216188.463 | E53: 0 | F53: 21.11 | G53: 222244.5084 | H53: 0 | I53: 23.5 | J53: 234467.5725
B54: 5600 | C54: 19.83 | D54: 218882.7852 | E54: 0 | F54: 22.36 | G54: 231724.0734 | H54: 0 | I54: 24.88 | J54: 244466.145
A55: 2300 | B55: 2300 | C55: 9 | D55: 122888.2853 | E55: 0 | F55: 10.14 | G55: 130612.8331 | H55: 0 | I55: 11.29 | J55: 138225.9375
B56: 2600 | C56: 10.28 | D56: 131688.0902 | E56: 0 | F56: 11.59 | G56: 139907.009 | H56: 0 | I56: 12.9 | J56: 148064.6475
B57: 2900 | C57: 11.57 | D57: 150919.1242 | E57: 0 | F57: 13.04 | G57: 160448.1264 | H57: 0 | I57: 14.52 | J57: 170879.7825
B58: 3200 | C58: 12.85 | D58: 161387.4314 | E58: 0 | F58: 14.49 | G58: 171460.2416 | H58: 0 | I58: 16.13 | J58: 182447.2125
B59: 3500 | C59: 14.14 | D59: 171855.7385 | E59: 0 | F59: 15.94 | G59: 182484.7162 | H59: 0 | I59: 17.74 | J59: 194027.8725
B60: 3800 | C60: 15.42 | D60: 182324.0456 | E60: 0 | F60: 17.39 | G60: 193496.8315 | H60: 0 | I60: 19.35 | J60: 199577.8575
B61: 4100 | C61: 16.71 | D61: 192792.3527 | E61: 0 | F61: 18.84 | G61: 204521.306 | H61: 0 | I61: 20.97 | J61: 210366.9225
B62: 4400 | C62: 17.99 | D62: 203248.3006 | E62: 0 | F62: 20.29 | G62: 215533.4213 | H62: 0 | I62: 22.58 | J62: 221131.7325
B63: 4700 | C63: 19.28 | D63: 213716.6077 | E63: 0 | F63: 21.73 | G63: 226557.8959 | H63: 0 | I63: 24.19 | J63: 231909.7725
B64: 5000 | C64: 20.56 | D64: 224184.9148 | E64: 0 | F64: 23.18 | G64: 230463.4272 | H64: 0 | I64: 25.8 | J64: 242698.8375
B65: 5300 | C65: 21.85 | D65: 234653.2219 | E65: 0 | F65: 24.63 | G65: 240721.6266 | H65: 0 | I65: 27.42 | J65: 253463.6475
B66: 5600 | C66: 23.13 | D66: 237644.1668 | E66: 0 | F66: 26.08 | G66: 250992.1853 | H66: 0 | I66: 29.03 | J66: 264253.815
A67: 2600 | B67: 2600 | C67: 11.75 | D67: 140932.8289 | E67: 0 | F67: 13.25 | G67: 149683.1966 | H67: 0 | I67: 14.75 | J67: 158310.18
B68: 2900 | C68: 13.22 | D68: 162994.1373 | E68: 0 | F68: 14.9 | G68: 173066.9476 | H68: 0 | I68: 16.59 | J68: 184054.6575
B69: 3200 | C69: 14.69 | D69: 174253.4381 | E69: 0 | F69: 16.56 | G69: 184882.4158 | H69: 0 | I69: 18.43 | J69: 196425.81
B70: 3500 | C70: 16.16 | D70: 185525.0982 | E70: 0 | F70: 18.22 | G70: 196697.8841 | H70: 0 | I70: 20.28 | J70: 202259.1375
B71: 3800 | C71: 17.63 | D71: 196784.399 | E71: 0 | F71: 19.87 | G71: 208513.3523 | H71: 0 | I71: 22.12 | J71: 213753.8025
B72: 4100 | C72: 19.09 | D72: 208056.0591 | E72: 0 | F72: 21.53 | G72: 220328.8206 | H72: 0 | I72: 23.96 | J72: 225235.2375
B73: 4400 | C73: 20.56 | D73: 219315.3599 | E73: 0 | F73: 23.18 | G73: 225012.9863 | H73: 0 | I73: 25.8 | J73: 236716.6725
B74: 4700 | C74: 22.03 | D74: 223665.8252 | E74: 0 | F74: 24.84 | G74: 235988.0238 | H74: 0 | I74: 27.65 | J74: 248211.3375
B75: 5000 | C75: 23.5 | D75: 234121.773 | E75: 0 | F75: 26.5 | G75: 246963.0612 | H75: 0 | I75: 29.49 | J75: 259706.0025
B76: 5300 | C76: 24.97 | D76: 244602.4394 | E76: 0 | F76: 28.15 | G76: 257950.458 | H76: 0 | I76: 31.33 | J76: 271199.565
B77: 5600 | C77: 26.44 | D77: 255058.3873 | E77: 0 | F77: 29.81 | G77: 268925.4954 | H77: 0 | I77: 33.18 | J77: 282681
A78: 2900 | B78: 2900 | C78: =(B78/1000-0.2)*2.04*2.7 -> 14.8716 | D78: 175055.5551 | E78: 16.767 | F78: 16.767 | G78: 185680.8251 | H78: 170745.25 | I78: 18.6624 | J78: 197222.9175
B79: 3200 | C79: =(B79/1000-0.2)*2.04*2.7 -> 16.524 | D79: 187121.9167 | E79: 18.63 | F79: 18.63 | G79: 198298.4104 | H79: 182147.17 | I79: 20.736 | J79: 210393.3825
B80: 3500 | C80: 18.1764 | D80: 199187.0423 | E80: 20.493 | F80: 20.493 | G80: 210915.9957 | H80: 193549.09 | I80: 22.8096 | J80: 223562.745
B81: 3800 | C81: 19.8288 | D81: 211252.168 | E81: 22.356 | F81: 22.356 | G81: 223413.696 | H81: 204951.01 | I81: 24.8832 | J81: 236733.21
B82: 4100 | C82: 21.4812 | D82: 223317.2936 | E82: 24.219 | F82: 24.219 | G82: 236151.1662 | H82: 216352.93 | I82: 26.9568 | J82: 249903.675
B83: 4400 | C83: 23.1336 | D83: 235383.6552 | E83: 26.082 | F83: 26.082 | G83: 248648.8665 | H83: 227754.85 | I83: 29.0304 | J83: 263073.0375
B84: 4700 | C84: 24.786 | D84: 247448.7808 | E84: 27.945 | F84: 27.945 | G84: 261386.3368 | H84: 239156.77 | I84: 31.104 | J84: 276243.5025
B85: 5000 | C85: 26.4384 | D85: 259513.9064 | E85: 29.808 | F85: 29.808 | G85: 274005.158 | H85: 250558.69 | I85: 33.1776 | J85: 289413.9675
B86: 5300 | C86: 28.0908 | D86: 271579.0321 | E86: 31.671 | F86: 31.671 | G86: 286622.7433 | H86: 261960.61 | I86: 35.2512 | J86: 302583.33
B87: 5600 | C87: 29.7432 | D87: 283645.3936 | E87: 33.534 | F87: 33.534 | G87: 299240.3286 | H87: 273362.53 | I87: 37.3248 | J87: 315753.795
A88: 3200 | B88: 3200 | C88: =(B88/1000-0.2)*2.04*3 -> 18.36 | D88: 208638.181 | E88: 20.7 | F88: 20.7 | G88: 211715.6408 | H88: 194241.38 | I88: 23.04 | J88: 224363.16
B89: 3500 | C89: =(B89/1000-0.2)*2.04*3 -> 20.196 | D89: 212851.4583 | E89: 22.77 | F89: 22.77 | G89: 225132.8713 | H89: 206336.66 | I89: 25.344 | J89: 238334.04
B90: 3800 | C90: 22.032 | D90: 225717.4651 | E90: 24.84 | F90: 24.84 | G90: 238551.3377 | H90: 218430.87 | I90: 27.648 | J90: 252303.8175
B91: 4100 | C91: 23.868 | D91: 238582.2359 | E91: 26.91 | F91: 26.91 | G91: 251968.5682 | H91: 230525.08 | I91: 29.952 | J91: 266273.595
B92: 4400 | C92: 25.704 | D92: 251448.2426 | E92: 28.98 | F92: 28.98 | G92: 265385.7986 | H92: 242619.29 | I92: 32.256 | J92: 280243.3725
B93: 4700 | C93: 27.54 | D93: 264313.0135 | E93: 31.05 | F93: 31.05 | G93: 278804.265 | H93: 254713.5 | I93: 34.56 | J93: 294212.0475
B94: 5000 | C94: 29.376 | D94: 277179.0202 | E94: 33.12 | F94: 33.12 | G94: 292221.4955 | H94: 266808.78 | I94: 36.864 | J94: 308184.03
B95: 5300 | C95: 31.212 | D95: 290043.791 | E95: 35.19 | F95: 35.19 | G95: 305638.726 | H95: 278902.99 | I95: 39.168 | J95: 322152.705
B96: 5600 | C96: 33.048 | D96: 302909.7978 | E96: 37.26 | F96: 37.26 | G96: 319057.1924 | H96: 290997.2 | I96: 41.472 | J96: 336122.4825
A97: 3500 | B97: 3500 | C97: =(B97/1000-0.2)*2.04*3.3 -> 22.2156 | D97: 226517.1103 | E97: 25.047 | F97: 25.047 | G97: 239350.9829 | H97: 219123.16 | I97: 27.8784 | J97: 253103.13
B98: 3800 | C98: =(B98/1000-0.2)*2.04*3.3 -> 24.2352 | D98: 240182.7622 | E98: 27.324 | F98: 27.324 | G98: 253567.8585 | H98: 231909.66 | I98: 30.4128 | J98: 267872.22
B99: 4100 | C99: 26.2548 | D99: 253847.1782 | E99: 29.601 | F99: 29.601 | G99: 267785.9701 | H99: 244697.23 | I99: 32.9472 | J99: 282643.515
B100: 4400 | C100: 28.2744 | D100: 267512.8301 | E100: 31.878 | F100: 31.878 | G100: 282002.8458 | H100: 257483.73 | I100: 35.4816 | J100: 297412.605
B101: 4700 | C101: 30.294 | D101: 281178.482 | E101: 34.155 | F101: 34.155 | G101: 296220.9574 | H101: 270271.3 | I101: 38.016 | J101: 312182.7975
B102: 5000 | C102: 32.3136 | D102: 294842.898 | E102: 36.432 | F102: 36.432 | G102: 310437.833 | H102: 283057.8 | I102: 40.5504 | J102: 326951.8875
B103: 5300 | C103: 34.3332 | D103: 308508.55 | E103: 38.709 | F103: 38.709 | G103: 324655.9446 | H103: 295844.3 | I103: 43.0848 | J103: 341722.08
B104: 5600 | C104: 36.3528 | D104: 322174.2019 | E104: 40.986 | F104: 40.986 | G104: 338872.8203 | H104: 308631.87 | I104: 45.6192 | J104: 356492.2725
A105: 3800 | B105: 3800 | C105: =(B105/1000-0.2)*2.04*3.6 -> 26.4384 | D105: 254648.0593 | E105: 29.808 | F105: 29.808 | G105: 268585.6153 | H105: 245389.52 | I105: 33.1776 | J105: 283442.8275
B106: 4100 | C106: =(B106/1000-0.2)*2.04*3.6 -> 28.6416 | D106: 269112.1205 | E106: 32.292 | F106: 32.292 | G106: 283603.3721 | H106: 258869.38 | I106: 35.9424 | J106: 299013.435
B107: 4400 | C107: 30.8448 | D107: 283577.4176 | E107: 34.776 | F107: 34.776 | G107: 298619.8929 | H107: 272348.17 | I107: 38.7072 | J107: 314581.8375
B108: 4700 | C108: 33.048 | D108: 298042.7147 | E108: 37.26 | F108: 37.26 | G108: 313637.6497 | H108: 285828.03 | I108: 41.472 | J108: 330152.445
B109: 5000 | C109: 35.2512 | D109: 312508.0118 | E109: 39.744 | F109: 39.744 | G109: 328655.4064 | H109: 299306.82 | I109: 44.2368 | J109: 345720.8475
B110: 5300 | C110: 37.4544 | D110: 326973.3089 | E110: 42.228 | F110: 42.228 | G110: 343671.9273 | H110: 312786.68 | I110: 47.0016 | J110: 361291.455
B111: 5600 | C111: 39.6576 | D111: 341437.3701 | E111: 44.712 | F111: 44.712 | G111: 358689.6841 | H111: 326265.47 | I111: 49.7664 | J111: 376859.8575
A112: 4100 | B112: 4100 | C112: =(B112/1000-0.2)*2.04*3.9 -> 31.0284 | D112: 284377.0628 | E112: 34.983 | F112: 34.983 | G112: 299420.774 | H112: 273040.46 | I112: 38.9376 | J112: 315381.15
B113: 4400 | C113: 33.4152 | D113: 299642.0051 | E113: 37.674 | F113: 37.674 | G113: 315236.94 | H113: 287212.61 | I113: 41.9328 | J113: 331751.07
B114: 4700 | C114: 35.802 | D114: 314906.9474 | E114: 40.365 | F114: 40.365 | G114: 331054.342 | H114: 301384.76 | I114: 44.928 | J114: 348120.99
B115: 5000 | C115: 38.1888 | D115: 330171.8897 | E115: 43.056 | F115: 43.056 | G115: 346871.7439 | H115: 315555.84 | I115: 47.9232 | J115: 364489.8075
B116: 5300 | C116: 40.5756 | D116: 345436.832 | E116: 45.747 | F116: 45.747 | G116: 362689.1459 | H116: 328829.19 | I116: 50.9184 | J116: 379821.1725
B117: 5600 | C117: 42.9624 | D117: 360701.7743 | E117: 48.438 | F117: 48.438 | G117: 378506.5478 | H117: 343900.14 | I117: 53.9136 | J117: 397229.6475
A118: 4400 | B118: 4400 | C118: =(B118/1000-0.2)*2.04*4.2 -> 35.9856 | D118: 315706.5926 | E118: 40.572 | F118: 40.572 | G118: 331855.2231 | H118: 302077.05 | I118: 45.1584 | J118: 348921.405
B119: 4700 | C119: =(B119/1000-0.2)*2.04*4.2 -> 38.556 | D119: 331772.416 | E119: 43.47 | F119: 43.47 | G119: 348472.2702 | H119: 316941.49 | I119: 48.384 | J119: 366090.6375
B120: 5000 | C120: =(B120/1000-0.2)*2.04*4.2 -> 41.1264 | D120: 347837.0034 | E120: 46.368 | F120: 46.368 | G120: 365089.3174 | H120: 331805.93 | I120: 51.6096 | J120: 383259.87
B121: 5300 | C121: =(B121/1000-0.2)*2.04*4.2 -> 43.6968 | D121: 363901.5909 | E121: 49.266 | F121: 49.266 | G121: 381706.3645 | H121: 346670.37 | I121: 54.8352 | J121: 400429.1025
B122: 5600 | C122: =(B122/1000-0.2)*2.04*4.2 -> 46.2672 | D122: 379966.1784 | E122: 52.164 | F122: 52.164 | G122: 398323.4116 | H122: 361534.81 | I122: 58.0608 | J122: 417599.4375
A123: 4700 | B123: 4700 | C123: =(B123/1000-0.2)*2.04*4.5 -> 41.31 | D123: 348636.6486 | E123: 46.575 | F123: 46.575 | G123: 365888.9626 | H123: 332498.22 | I123: 51.84 | J123: 384059.1825
B124: 5000 | C124: =(B124/1000-0.2)*2.04*4.5 -> 44.064 | D124: 365500.8813 | E124: 49.68 | F124: 49.68 | G124: 383305.6549 | H124: 348054.95 | I124: 55.296 | J124: 402028.83
B125: 5300 | C125: =(B125/1000-0.2)*2.04*4.5 -> 46.818 | D125: 382366.3499 | E125: 52.785 | F125: 52.785 | G125: 400722.3472 | H125: 363611.68 | I125: 58.752 | J125: 419997.375
B126: 5600 | C126: =(B126/1000-0.2)*2.04*4.5 -> 49.572 | D126: 399230.5825 | E126: 55.89 | F126: 55.89 | G126: 418139.0395 | H126: 379168.41 | I126: 62.208 | J126: 437967.0225
A127: 5000 | B127: 5000 | C127: =(B127/1000-0.2)*2.04*4.8 -> 47.0016 | D127: 383165.9951 | E127: 52.992 | F127: 52.992 | G127: 401521.9924 | H127: 364271.87 | I127: 58.9824 | J127: 420760.305
B128: 5300 | C128: =(B128/1000-0.2)*2.04*4.8 -> 49.9392 | D128: 400829.8729 | E128: 56.304 | F128: 56.304 | G128: 419739.5658 | H128: 380552.99 | I128: 62.6688 | J128: 439566.75
B129: 5600 | C129: =(B129/1000-0.2)*2.04*4.8 -> 52.8768 | D129: 418494.9867 | E129: 59.616 | F129: 59.616 | G129: 437955.9033 | H129: 396803.08 | I129: 66.3552 | J129: 458336.8125
A130: 5300 | B130: 5300 | C130: =(B130/1000-0.2)*2.04*5.1 -> 53.0604 | D130: 419294.6319 | E130: 59.823 | F130: 59.823 | G130: 438755.5485 | H130: 397495.37 | I130: 66.5856 | J130: 459136.125
B131: 5600 | C131: =(B131/1000-0.2)*2.04*5.1 -> 56.1816 | D131: 437759.3908 | E131: 63.342 | F131: 63.342 | G131: 457772.7671 | H131: 414436.68 | I131: 70.5024 | J131: 478704.3975
A132: 5600 | B132: 5600 | C132: =(B132/1000-0.2)*2.04*5.4 -> 59.4864 | D132: 457023.795 | E132: 67.07 | F132: 67.07 | G132: 477589.6309 | H132: 431556.68 | I132: 74.65 | J132: 498478.8375
A134: Цены на оборудование ТМ «POLAIR», указанные в настоящем прайс-листе являются рекомендованными и могут отличаться от розничных цен у наших дилеров и региональных представителей.
